[Event "Early-Titled-Tuesday-Blitz-September-12-2023"]
[Site "Chess.com"]
[Date "2023.09.12"]
[Round "3"]
[White "Mr_Lion22"]
[Black "benny_aizenberg"]
[Result "0-1"]
[WhiteElo "2442"]
[BlackElo "2624"]
[TimeControl "180+1"]
[EndTime "8:29:17 PDT"]
[Termination "benny_aizenberg won on time"]

1. d4 {[%clk 0:02:57]} 1... g5 {[%clk 0:02:46.8]} 2. Bxg5 {[%clk 0:02:55.5]}
2... Bg7 {[%clk 0:02:45.3]} 3. Nc3 {[%clk 0:02:53.8]} 3... c5 {[%clk 0:02:42.3]}
4. Nf3 {[%clk 0:02:52.5]} 4... cxd4 {[%clk 0:02:30.6]} 5. Nxd4 {[%clk
0:02:53.3]} 5... Qb6 {[%clk 0:02:21]} 6. Nb3 {[%clk 0:02:36.8]} 6... Nc6 {[%clk
0:02:12.3]} 7. e3 {[%clk 0:02:23.9]} 7... e6 {[%clk 0:02:06.8]} 8. Qd6 {[%clk
0:02:06]} 8... a5 {[%clk 0:01:36.3]} 9. Nb5 {[%clk 0:02:04.1]} 9... Be5 {[%clk
0:01:15.1]} 10. Qc5 {[%clk 0:01:53]} 10... Qxc5 {[%clk 0:01:08.3]} 11. Nxc5
{[%clk 0:01:52.5]} 11... b6 {[%clk 0:00:55.5]} 12. Nd3 {[%clk 0:01:50.6]} 12...
Bb8 {[%clk 0:00:44.8]} 13. Bf4 {[%clk 0:01:35]} 13... e5 {[%clk 0:00:42.2]} 14.
Bg5 {[%clk 0:01:17]} 14... h6 {[%clk 0:00:25.9]} 15. Bh4 {[%clk 0:01:06.2]}
15... d5 {[%clk 0:00:22]} 16. O-O-O {[%clk 0:01:02.2]} 16... Ba6 {[%clk
0:00:17.4]} 17. Nc3 {[%clk 0:00:59.9]} 17... Nge7 {[%clk 0:00:14.4]} 18. g3
{[%clk 0:00:44.4]} 18... Bd6 {[%clk 0:00:11.2]} 19. Bg2 {[%clk 0:00:44.6]} 19...
e4 {[%clk 0:00:09.8]} 20. Nf4 {[%clk 0:00:42.6]} 20... Bxf4 {[%clk 0:00:07.2]}
21. exf4 {[%clk 0:00:43]} 21... O-O-O {[%clk 0:00:06.9]} 22. Rd2 {[%clk
0:00:23]} 22... f5 {[%clk 0:00:07.4]} 23. Rhd1 {[%clk 0:00:23]} 23... d4 {[%clk
0:00:07.4]} 24. Ne2 {[%clk 0:00:17]} 24... Bxe2 {[%clk 0:00:07.1]} 25. Rxe2
{[%clk 0:00:17.9]} 25... Rd6 {[%clk 0:00:06.3]} 26. Red2 {[%clk 0:00:17.3]}
26... Rhd8 {[%clk 0:00:06.3]} 27. c3 {[%clk 0:00:16.8]} 27... d3 {[%clk
0:00:05.8]} 28. Bf1 {[%clk 0:00:14.8]} 28... R8d7 {[%clk 0:00:06]} 29. f3 {[%clk
0:00:14]} 29... Nd5 {[%clk 0:00:05.9]} 30. fxe4 {[%clk 0:00:12.9]} 30... fxe4
{[%clk 0:00:06.8]} 31. Bh3 {[%clk 0:00:13.3]} 31... Ne3 {[%clk 0:00:05.9]} 32.
Re1 {[%clk 0:00:12.6]} 32... Nc4 {[%clk 0:00:06]} 33. Bxd7+ {[%clk 0:00:12.6]}
33... Kxd7 {[%clk 0:00:06.3]} 34. Rxe4 {[%clk 0:00:12.4]} 34... Nxd2 {[%clk
0:00:06.6]} 35. Kxd2 {[%clk 0:00:13.3]} 35... b5 {[%clk 0:00:06.6]} 36. g4
{[%clk 0:00:12.2]} 36... b4 {[%clk 0:00:06.8]} 37. f5 {[%clk 0:00:11.1]} 37...
bxc3+ {[%clk 0:00:05.5]} 38. bxc3 {[%clk 0:00:12]} 38... Rd5 {[%clk 0:00:04.1]}
39. f6 {[%clk 0:00:09.8]} 39... Ne5 {[%clk 0:00:04.7]} 40. Bg3 {[%clk 0:00:07]}
40... Nf3+ {[%clk 0:00:02.8]} 41. Kc1 {[%clk 0:00:04.7]} 41... d2+ {[%clk
0:00:02.3]} 42. Kd1 {[%clk 0:00:05]} 42... Rb5 {[%clk 0:00:03]} 43. Rd4+ {[%clk
0:00:02.9]} 43... Ke6 {[%clk 0:00:02.1]} 44. Rd3 {[%clk 0:00:01.4]} 44... Rb1+
{[%clk 0:00:01.7]} 45. Ke2 {[%clk 0:00:02.1]} 45... Re1+ {[%clk 0:00:02]} 46.
Kxf3 {[%clk 0:00:02.3]} 46... d1=Q+ {[%clk 0:00:02.7]} 47. Rxd1 {[%clk 0:00:03]}
47... Rxd1 {[%clk 0:00:03.6]} 48. g5 {[%clk 0:00:02.3]} 48... hxg5 {[%clk
0:00:03.7]} 49. Ke2 {[%clk 0:00:03]} 49... Ra1 {[%clk 0:00:03.7]} 50. Kd3 {[%clk
0:00:03.5]} 50... Rxa2 {[%clk 0:00:04.6]} 51. c4 {[%clk 0:00:03.8]} 51... Kxf6
{[%clk 0:00:05.1]} 52. c5 {[%clk 0:00:04.6]} 52... Ke6 {[%clk 0:00:05.8]} 53. c6
{[%clk 0:00:05.3]} 53... Ra3+ {[%clk 0:00:05.3]} 54. Kc4 {[%clk 0:00:05.1]}
54... Ke7 {[%clk 0:00:05.5]} 55. Kb5 {[%clk 0:00:03.8]} 55... a4 {[%clk
0:00:05.2]} 56. Kb6 {[%clk 0:00:02.6]} 56... Rc3 {[%clk 0:00:05.3]} 57. c7
{[%clk 0:00:02.5]} 57... Kd7 {[%clk 0:00:05.2]} 58. Be1 {[%clk 0:00:01.8]} 58...
Rc2 {[%clk 0:00:05.5]} 0-1

[Event "Early-Titled-Tuesday-Blitz-September-12-2023"]
[Site "Chess.com"]
[Date "2023.09.12"]
[Round "3"]
[White "DvaHrasta"]
[Black "DopplerCharlotteDeWitte"]
[Result "0-1"]
[WhiteElo "2483"]
[BlackElo "2674"]
[TimeControl "180+1"]
[EndTime "8:29:22 PDT"]
[Termination "DopplerCharlotteDeWitte won on time"]

1. c4 {[%clk 0:03:00.9]} 1... e5 {[%clk 0:02:59.5]} 2. g3 {[%clk 0:03:01]} 2...
Nf6 {[%clk 0:02:57.1]} 3. Bg2 {[%clk 0:03:01]} 3... c6 {[%clk 0:02:56.6]} 4. Nf3
{[%clk 0:03:00.5]} 4... e4 {[%clk 0:02:56.3]} 5. Nd4 {[%clk 0:03:00.6]} 5... d5
{[%clk 0:02:56.7]} 6. cxd5 {[%clk 0:03:00.8]} 6... cxd5 {[%clk 0:02:54.7]} 7.
O-O {[%clk 0:03:00.6]} 7... Bc5 {[%clk 0:02:52]} 8. Nb3 {[%clk 0:02:57.8]} 8...
Bb6 {[%clk 0:02:50.1]} 9. d3 {[%clk 0:02:57.9]} 9... O-O {[%clk 0:02:26.4]} 10.
Nc3 {[%clk 0:02:57.3]} 10... h6 {[%clk 0:02:18.8]} 11. dxe4 {[%clk 0:02:55.8]}
11... dxe4 {[%clk 0:02:19.7]} 12. Nxe4 {[%clk 0:02:49.6]} 12... Nxe4 {[%clk
0:02:18.3]} 13. Bxe4 {[%clk 0:02:49.5]} 13... Nc6 {[%clk 0:02:13.3]} 14. Bf4
{[%clk 0:02:43.6]} 14... Qf6 {[%clk 0:02:09.1]} 15. Rb1 {[%clk 0:02:13.8]} 15...
Re8 {[%clk 0:02:06.3]} 16. Bf3 {[%clk 0:02:10.2]} 16... Bf5 {[%clk 0:02:06]} 17.
e4 {[%clk 0:01:52.7]} 17... Bxe4 {[%clk 0:02:05.3]} 18. Bxe4 {[%clk 0:01:51.5]}
18... Rxe4 {[%clk 0:02:06.2]} 19. Qd6 {[%clk 0:01:47.3]} 19... Qxd6 {[%clk
0:02:00.1]} 20. Bxd6 {[%clk 0:01:46.4]} 20... Rd8 {[%clk 0:02:01]} 21. Bf4
{[%clk 0:01:39.4]} 21... Re2 {[%clk 0:02:01.1]} 22. h4 {[%clk 0:01:34.3]} 22...
f6 {[%clk 0:01:36.9]} 23. h5 {[%clk 0:01:30]} 23... Rd5 {[%clk 0:01:33.7]} 24.
Kg2 {[%clk 0:01:20.9]} 24... Rxh5 {[%clk 0:01:31.8]} 25. Nc1 {[%clk 0:01:08.8]}
25... Rc2 {[%clk 0:01:27.1]} 26. a3 {[%clk 0:00:56.3]} 26... Rd5 {[%clk
0:01:21.9]} 27. b4 {[%clk 0:00:46]} 27... g5 {[%clk 0:01:21.8]} 28. b5 {[%clk
0:00:37.4]} 28... Na5 {[%clk 0:01:04.5]} 29. Bb8 {[%clk 0:00:30.8]} 29... Rd8
{[%clk 0:01:03.3]} 30. Bxa7 {[%clk 0:00:30.9]} 30... Bxa7 {[%clk 0:01:03.7]} 31.
b6 {[%clk 0:00:31.3]} 31... Bb8 {[%clk 0:01:04.4]} 32. Rb5 {[%clk 0:00:27.3]}
32... Nc6 {[%clk 0:01:02.2]} 33. Nb3 {[%clk 0:00:19.8]} 33... Rb2 {[%clk
0:00:56.4]} 34. a4 {[%clk 0:00:19.5]} 34... Rd7 {[%clk 0:00:40.7]} 35. Nc5
{[%clk 0:00:18]} 35... Rxb5 {[%clk 0:00:40.8]} 36. axb5 {[%clk 0:00:17.8]} 36...
Rd5 {[%clk 0:00:38.4]} 37. bxc6 {[%clk 0:00:16.7]} 37... Rxc5 {[%clk 0:00:38.8]}
38. c7 {[%clk 0:00:11.8]} 38... Bxc7 {[%clk 0:00:38.2]} 39. bxc7 {[%clk
0:00:12.7]} 39... Rxc7 {[%clk 0:00:38.7]} 40. Rb1 {[%clk 0:00:12.5]} 40... Kf7
{[%clk 0:00:38.1]} 41. Rb6 {[%clk 0:00:12.6]} 41... h5 {[%clk 0:00:26.9]} 42.
Kf3 {[%clk 0:00:12.4]} 42... Kg6 {[%clk 0:00:25]} 43. Ke4 {[%clk 0:00:10.3]}
43... Re7+ {[%clk 0:00:22.6]} 44. Kf3 {[%clk 0:00:10.3]} 44... g4+ {[%clk
0:00:19.2]} 45. Kg2 {[%clk 0:00:07.2]} 45... Kf7 {[%clk 0:00:15.3]} 46. Kf1
{[%clk 0:00:06.4]} 46... Kg7 {[%clk 0:00:15]} 47. Kg2 {[%clk 0:00:06.3]} 47...
Rf7 {[%clk 0:00:15.2]} 48. Kf1 {[%clk 0:00:05.5]} 48... Kf8 {[%clk 0:00:15.8]}
49. Ke2 {[%clk 0:00:06]} 49... Ke8 {[%clk 0:00:16]} 50. Ke3 {[%clk 0:00:06.5]}
50... Kd8 {[%clk 0:00:16.5]} 51. Kf4 {[%clk 0:00:06.9]} 51... Kc7 {[%clk
0:00:16.3]} 52. Rb5 {[%clk 0:00:07.5]} 52... f5 {[%clk 0:00:15.7]} 53. Kg5
{[%clk 0:00:07]} 53... Kc6 {[%clk 0:00:15.9]} 54. Rb1 {[%clk 0:00:06.7]} 54...
b5 {[%clk 0:00:16.1]} 55. Kxh5 {[%clk 0:00:06.1]} 55... Kc5 {[%clk 0:00:14.6]}
56. Kg6 {[%clk 0:00:06.2]} 56... Rf8 {[%clk 0:00:14.3]} 57. Kg7 {[%clk
0:00:06.6]} 57... Rd8 {[%clk 0:00:13.6]} 58. Kf6 {[%clk 0:00:06.6]} 58... Rd5
{[%clk 0:00:10]} 59. Ke6 {[%clk 0:00:06.8]} 59... Rd2 {[%clk 0:00:09]} 60. Kxf5
{[%clk 0:00:06.6]} 60... Rd4 {[%clk 0:00:08.3]} 61. Rc1+ {[%clk 0:00:04.6]}
61... Rc4 {[%clk 0:00:07.3]} 62. Rf1 {[%clk 0:00:02.4]} 62... b4 {[%clk
0:00:07.7]} 63. f3 {[%clk 0:00:02.7]} 63... gxf3 {[%clk 0:00:06.8]} 64. Rxf3
{[%clk 0:00:03.1]} 64... Kd4 {[%clk 0:00:05.5]} 65. g4 {[%clk 0:00:01.9]} 65...
Rc5+ {[%clk 0:00:05.3]} 66. Kf6 {[%clk 0:00:01.5]} 66... Rc6+ {[%clk 0:00:06.1]}
67. Kf5 {[%clk 0:00:01.3]} 67... Rc3 {[%clk 0:00:04.3]} 0-1

[Event "Early-Titled-Tuesday-Blitz-September-12-2023"]
[Site "Chess.com"]
[Date "2023.09.12"]
[Round "3"]
[White "karinachess1"]
[Black "gmcorrales"]
[Result "1-0"]
[WhiteElo "2613"]
[BlackElo "2842"]
[TimeControl "180+1"]
[EndTime "8:29:23 PDT"]
[Termination "karinachess1 won by checkmate"]

1. d4 {[%clk 0:03:00.9]} 1... Nf6 {[%clk 0:02:59.9]} 2. c4 {[%clk 0:03:00.7]}
2... g6 {[%clk 0:03:00.1]} 3. g3 {[%clk 0:02:57.5]} 3... Bg7 {[%clk 0:03:00]} 4.
Bg2 {[%clk 0:02:58]} 4... O-O {[%clk 0:03:00.6]} 5. Nc3 {[%clk 0:02:57.8]} 5...
c6 {[%clk 0:02:59.5]} 6. e4 {[%clk 0:02:53.6]} 6... d6 {[%clk 0:03:00]} 7. Nf3
{[%clk 0:02:53.6]} 7... Bg4 {[%clk 0:02:59.3]} 8. h3 {[%clk 0:02:46.5]} 8...
Bxf3 {[%clk 0:02:59.4]} 9. Bxf3 {[%clk 0:02:43.4]} 9... Nbd7 {[%clk 0:03:00]}
10. O-O {[%clk 0:02:43]} 10... a5 {[%clk 0:02:58.8]} 11. Bg2 {[%clk 0:02:38.1]}
11... Ne8 {[%clk 0:02:57.6]} 12. Be3 {[%clk 0:02:32.7]} 12... Nc7 {[%clk
0:02:57]} 13. f4 {[%clk 0:02:16.2]} 13... Rb8 {[%clk 0:02:56.5]} 14. e5 {[%clk
0:02:06.9]} 14... c5 {[%clk 0:02:49.5]} 15. exd6 {[%clk 0:01:36.1]} 15... exd6
{[%clk 0:02:46.9]} 16. f5 {[%clk 0:01:35.5]} 16... Re8 {[%clk 0:02:31.2]} 17.
Bf2 {[%clk 0:01:31.4]} 17... gxf5 {[%clk 0:02:27.7]} 18. dxc5 {[%clk 0:01:07.9]}
18... dxc5 {[%clk 0:02:27.8]} 19. Qh5 {[%clk 0:01:04.4]} 19... Qf6 {[%clk
0:02:21.2]} 20. Rad1 {[%clk 0:01:02.1]} 20... Re7 {[%clk 0:02:12.1]} 21. g4
{[%clk 0:00:52.6]} 21... Qg6 {[%clk 0:01:51.4]} 22. Qxf5 {[%clk 0:00:44.4]}
22... Qxf5 {[%clk 0:01:51.4]} 23. gxf5 {[%clk 0:00:45.3]} 23... b6 {[%clk
0:01:31.1]} 24. Rfe1 {[%clk 0:00:30.6]} 24... Rxe1+ {[%clk 0:01:29.8]} 25. Bxe1
{[%clk 0:00:27.6]} 25... Bd4+ {[%clk 0:01:29.1]} 26. Bf2 {[%clk 0:00:28]} 26...
Bxf2+ {[%clk 0:01:28.3]} 27. Kxf2 {[%clk 0:00:28.9]} 27... Ne5 {[%clk
0:01:28.5]} 28. b3 {[%clk 0:00:28.4]} 28... Kf8 {[%clk 0:01:25.3]} 29. Rd6
{[%clk 0:00:19.4]} 29... Ne8 {[%clk 0:01:12.9]} 30. Rd5 {[%clk 0:00:15.4]} 30...
f6 {[%clk 0:01:13.2]} 31. Nb5 {[%clk 0:00:13.2]} 31... Ke7 {[%clk 0:01:12.4]}
32. Rd1 {[%clk 0:00:11.5]} 32... Rd8 {[%clk 0:01:11.6]} 33. Rxd8 {[%clk
0:00:10.9]} 33... Kxd8 {[%clk 0:01:12.5]} 34. Ke3 {[%clk 0:00:10.6]} 34... Ke7
{[%clk 0:01:12.2]} 35. Be4 {[%clk 0:00:10.5]} 35... Nd6 {[%clk 0:01:12.6]} 36.
Nc3 {[%clk 0:00:09.3]} 36... Kf7 {[%clk 0:01:08.5]} 37. Nd5 {[%clk 0:00:09.6]}
37... Nd7 {[%clk 0:01:08.9]} 38. Nc3 {[%clk 0:00:08.6]} 38... Kg7 {[%clk
0:01:07.3]} 39. Kf4 {[%clk 0:00:07.5]} 39... Ne5 {[%clk 0:01:04]} 40. Nd5 {[%clk
0:00:07.1]} 40... Nc8 {[%clk 0:01:04.5]} 41. Nc7 {[%clk 0:00:06.2]} 41... Kf7
{[%clk 0:00:59.9]} 42. Nd5 {[%clk 0:00:05.9]} 42... Nd7 {[%clk 0:00:51.1]} 43.
Bc2 {[%clk 0:00:05]} 43... Ne7 {[%clk 0:00:50.9]} 44. Nc3 {[%clk 0:00:03.9]}
44... Nc6 {[%clk 0:00:50.2]} 45. Be4 {[%clk 0:00:04.2]} 45... Nd4 {[%clk
0:00:49.6]} 46. Nd5 {[%clk 0:00:04.6]} 46... Ne2+ {[%clk 0:00:45.5]} 47. Ke3
{[%clk 0:00:04.9]} 47... Nc1 {[%clk 0:00:46.4]} 48. Bb1 {[%clk 0:00:04.3]} 48...
Kg7 {[%clk 0:00:30.8]} 49. Kd2 {[%clk 0:00:04.6]} 49... Nxa2 {[%clk 0:00:27.9]}
50. Bxa2 {[%clk 0:00:04.9]} 50... Kh6 {[%clk 0:00:28.8]} 51. Ke3 {[%clk
0:00:05.4]} 51... Kg5 {[%clk 0:00:29.2]} 52. Bb1 {[%clk 0:00:06.1]} 52... Kh4
{[%clk 0:00:29.6]} 53. Nf4 {[%clk 0:00:05.6]} 53... Kg3 {[%clk 0:00:29.8]} 54.
Ke4 {[%clk 0:00:05.4]} 54... h6 {[%clk 0:00:27.2]} 55. Bc2 {[%clk 0:00:03.9]}
55... Ne5 {[%clk 0:00:26.1]} 56. Bd1 {[%clk 0:00:03.7]} 56... Nc6 {[%clk
0:00:25.3]} 57. Nd5 {[%clk 0:00:03.6]} 57... Kxh3 {[%clk 0:00:23.2]} 58. Nxf6
{[%clk 0:00:03.9]} 58... Kg3 {[%clk 0:00:20.9]} 59. Nh5+ {[%clk 0:00:04.2]}
59... Kf2 {[%clk 0:00:21.8]} 60. f6 {[%clk 0:00:05.1]} 60... Nd8 {[%clk
0:00:21.4]} 61. Ke5 {[%clk 0:00:04.8]} 61... Ke1 {[%clk 0:00:22]} 62. Bg4 {[%clk
0:00:05.1]} 62... Nf7+ {[%clk 0:00:21.9]} 63. Ke6 {[%clk 0:00:05]} 63... Ng5+
{[%clk 0:00:22.8]} 64. Ke7 {[%clk 0:00:04.7]} 64... Kd2 {[%clk 0:00:23.7]} 65.
Nf4 {[%clk 0:00:05.1]} 65... Kc3 {[%clk 0:00:23.1]} 66. Bd1 {[%clk 0:00:04]}
66... Kd2 {[%clk 0:00:22.5]} 67. Bh5 {[%clk 0:00:04.3]} 67... Kc2 {[%clk
0:00:22.9]} 68. Nd5 {[%clk 0:00:04.4]} 68... Kxb3 {[%clk 0:00:22.5]} 69. Nxb6
{[%clk 0:00:04.8]} 69... a4 {[%clk 0:00:22.9]} 70. Bd1+ {[%clk 0:00:05.1]} 70...
Kb4 {[%clk 0:00:22.8]} 71. Nxa4 {[%clk 0:00:05.6]} 71... Ka5 {[%clk 0:00:23.7]}
72. Nxc5 {[%clk 0:00:05.7]} 72... Kb4 {[%clk 0:00:24.6]} 73. Ne6 {[%clk
0:00:06.2]} 73... Nh7 {[%clk 0:00:23.9]} 74. c5 {[%clk 0:00:06.6]} 74... Kc3
{[%clk 0:00:24.8]} 75. c6 {[%clk 0:00:06.7]} 75... Kd2 {[%clk 0:00:25.7]} 76.
Bh5 {[%clk 0:00:07.2]} 76... Nxf6 {[%clk 0:00:26.1]} 77. Kxf6 {[%clk 0:00:07.4]}
77... Ke3 {[%clk 0:00:26.2]} 78. c7 {[%clk 0:00:07.7]} 78... Ke4 {[%clk
0:00:27.1]} 79. c8=Q {[%clk 0:00:08.2]} 79... Ke3 {[%clk 0:00:27.3]} 80. Qc4
{[%clk 0:00:08.5]} 80... Kf2 {[%clk 0:00:28.2]} 81. Qe2+ {[%clk 0:00:08.4]}
81... Kg3 {[%clk 0:00:28.6]} 82. Qg4+ {[%clk 0:00:08.5]} 82... Kf2 {[%clk
0:00:29.2]} 83. Qe2+ {[%clk 0:00:08.6]} 83... Kg3 {[%clk 0:00:29.5]} 84. Qf3+
{[%clk 0:00:08.1]} 84... Kh2 {[%clk 0:00:29.2]} 85. Nf4 {[%clk 0:00:08.4]} 85...
Kg1 {[%clk 0:00:29.5]} 86. Qg2# {[%clk 0:00:09.1]} 1-0

[Event "Early-Titled-Tuesday-Blitz-September-12-2023"]
[Site "Chess.com"]
[Date "2023.09.12"]
[Round "3"]
[White "BlueWizzard"]
[Black "Itk04"]
[Result "0-1"]
[WhiteElo "2967"]
[BlackElo "2751"]
[TimeControl "180+1"]
[EndTime "8:29:31 PDT"]
[Termination "Itk04 won on time"]

1. d4 {[%clk 0:03:00.9]} 1... Nf6 {[%clk 0:02:55.3]} 2. Nc3 {[%clk 0:03:01.6]}
2... d5 {[%clk 0:02:54.5]} 3. Nf3 {[%clk 0:03:02.4]} 3... g6 {[%clk 0:02:55]} 4.
g3 {[%clk 0:03:01.6]} 4... Bg7 {[%clk 0:02:55.2]} 5. Bg2 {[%clk 0:03:02.3]} 5...
O-O {[%clk 0:02:55.4]} 6. O-O {[%clk 0:03:02.9]} 6... c6 {[%clk 0:02:47.8]} 7.
h3 {[%clk 0:03:02]} 7... h5 {[%clk 0:02:42.5]} 8. Ne5 {[%clk 0:02:59.8]} 8...
Bf5 {[%clk 0:02:41.6]} 9. Be3 {[%clk 0:02:56.6]} 9... Nfd7 {[%clk 0:02:40.2]}
10. f4 {[%clk 0:02:56.1]} 10... Qc8 {[%clk 0:02:32]} 11. Kh2 {[%clk 0:02:50.4]}
11... Nf6 {[%clk 0:02:02.1]} 12. a4 {[%clk 0:02:45.5]} 12... a5 {[%clk
0:02:01.5]} 13. Qe1 {[%clk 0:02:41.7]} 13... Na6 {[%clk 0:02:00.3]} 14. Qd2
{[%clk 0:02:37.1]} 14... Nc7 {[%clk 0:01:53.7]} 15. Bf2 {[%clk 0:02:34.5]} 15...
Nce8 {[%clk 0:01:53.1]} 16. Nf3 {[%clk 0:02:25.1]} 16... Ne4 {[%clk 0:01:48]}
17. Nxe4 {[%clk 0:02:22.4]} 17... Bxe4 {[%clk 0:01:48.9]} 18. c4 {[%clk
0:02:22.9]} 18... dxc4 {[%clk 0:01:35.4]} 19. Ng5 {[%clk 0:02:17.6]} 19... Bxg2
{[%clk 0:01:34.8]} 20. Kxg2 {[%clk 0:02:18.5]} 20... Nd6 {[%clk 0:01:32.3]} 21.
Qc2 {[%clk 0:02:16.5]} 21... f6 {[%clk 0:01:27.2]} 22. Nf3 {[%clk 0:02:16.2]}
22... Qf5 {[%clk 0:01:27.8]} 23. Qxf5 {[%clk 0:02:11.6]} 23... gxf5 {[%clk
0:01:28.7]} 24. Rfc1 {[%clk 0:02:07.6]} 24... e6 {[%clk 0:01:27.5]} 25. Nd2
{[%clk 0:02:06.5]} 25... b5 {[%clk 0:01:26.9]} 26. b3 {[%clk 0:02:04.8]} 26...
cxb3 {[%clk 0:01:09]} 27. Rxc6 {[%clk 0:02:04.3]} 27... b2 {[%clk 0:01:08.3]}
28. Rb1 {[%clk 0:01:52.6]} 28... bxa4 {[%clk 0:00:55.4]} 29. Rxb2 {[%clk
0:01:51.5]} 29... Rfb8 {[%clk 0:00:43.7]} 30. Ra2 {[%clk 0:01:46.5]} 30... Bf8
{[%clk 0:00:35.8]} 31. Kf3 {[%clk 0:01:33.7]} 31... Rb3+ {[%clk 0:00:33.7]} 32.
e3 {[%clk 0:01:22.5]} 32... Nb5 {[%clk 0:00:33.2]} 33. Rxa4 {[%clk 0:01:20.8]}
33... Rb2 {[%clk 0:00:21.2]} 34. Nc4 {[%clk 0:01:12.5]} 34... Rb3 {[%clk
0:00:19.9]} 35. Nb6 {[%clk 0:01:07.2]} 35... Rd8 {[%clk 0:00:16.6]} 36. Kg2
{[%clk 0:00:56.7]} 36... Bb4 {[%clk 0:00:15.7]} 37. Rxe6 {[%clk 0:00:54.6]}
37... Nc3 {[%clk 0:00:16.2]} 38. Ra1 {[%clk 0:00:54.1]} 38... Rb2 {[%clk
0:00:16.7]} 39. Kf3 {[%clk 0:00:51]} 39... Ne4 {[%clk 0:00:16.1]} 40. Bg1 {[%clk
0:00:48.6]} 40... Kf7 {[%clk 0:00:14]} 41. Rc6 {[%clk 0:00:48.6]} 41... Nd2+
{[%clk 0:00:13.4]} 42. Kg2 {[%clk 0:00:47]} 42... Nb3+ {[%clk 0:00:14.1]} 43.
Kf3 {[%clk 0:00:43.7]} 43... Nxa1 {[%clk 0:00:14.3]} 44. g4 {[%clk 0:00:39.9]}
44... fxg4+ {[%clk 0:00:13.3]} 45. hxg4 {[%clk 0:00:40.8]} 45... hxg4+ {[%clk
0:00:13.7]} 46. Ke4 {[%clk 0:00:41.5]} 46... Rc2 {[%clk 0:00:12.5]} 47. Nc4
{[%clk 0:00:39.6]} 47... Nb3 {[%clk 0:00:12.2]} 48. Kf5 {[%clk 0:00:38.6]} 48...
Rd5+ {[%clk 0:00:10.3]} 49. Ke4 {[%clk 0:00:37.9]} 49... Rd7 {[%clk 0:00:07.4]}
50. Ne5+ {[%clk 0:00:36.8]} 50... fxe5 {[%clk 0:00:07.4]} 51. Rxc2 {[%clk
0:00:37.7]} 51... exd4 {[%clk 0:00:07.3]} 52. exd4 {[%clk 0:00:37.4]} 52... a4
{[%clk 0:00:08]} 53. Rc4 {[%clk 0:00:34.4]} 53... Rb7 {[%clk 0:00:07]} 54. Rc2
{[%clk 0:00:32.5]} 54... a3 {[%clk 0:00:07.1]} 55. d5 {[%clk 0:00:32]} 55... Bd6
{[%clk 0:00:04.5]} 56. Rh2 {[%clk 0:00:30.1]} 56... Kg6 {[%clk 0:00:03.3]} 57.
f5+ {[%clk 0:00:30.1]} 57... Kg7 {[%clk 0:00:03.5]} 58. Rg2 {[%clk 0:00:27.8]}
58... g3 {[%clk 0:00:04]} 59. Be3 {[%clk 0:00:26.5]} 59... Rb4+ {[%clk
0:00:04.6]} 60. Kd3 {[%clk 0:00:26.5]} 60... Kf6 {[%clk 0:00:05]} 61. Kc3 {[%clk
0:00:26.9]} 61... Na5 {[%clk 0:00:03.8]} 62. Bc1 {[%clk 0:00:25.9]} 62... Rb3+
{[%clk 0:00:03.4]} 63. Kd4 {[%clk 0:00:25.4]} 63... Kxf5 {[%clk 0:00:04.3]} 64.
Rg1 {[%clk 0:00:24.8]} 64... Rb4+ {[%clk 0:00:04.3]} 65. Kc3 {[%clk 0:00:25.3]}
65... Rb3+ {[%clk 0:00:05.2]} 66. Kd4 {[%clk 0:00:25.8]} 66... Rf3 {[%clk
0:00:05.5]} 67. Rh1 {[%clk 0:00:24.7]} 67... Nb3+ {[%clk 0:00:06.1]} 68. Kc4
{[%clk 0:00:24.7]} 68... Nxc1 {[%clk 0:00:06.6]} 69. Rxc1 {[%clk 0:00:25.5]}
69... g2 {[%clk 0:00:07.1]} 70. Rg1 {[%clk 0:00:25.8]} 70... Rf2 {[%clk
0:00:07.2]} 71. Kb5 {[%clk 0:00:16.9]} 71... Bh2 {[%clk 0:00:07.5]} 72. d6
{[%clk 0:00:15.1]} 72... Bxg1 {[%clk 0:00:06.8]} 73. d7 {[%clk 0:00:16]} 73...
Rd2 {[%clk 0:00:07.2]} 0-1